bitfinex/quotes_BTCUSD_20240819
["timestamp","ask_amount","ask_price","bid_price","bid_amount"]
[1724087484846,2.09465718,58785.0,58784.0,0.000902]
[1724087485271,2.09665718,58785.0,58784.0,0.000902]
[1724087485476,2.18065718,58785.0,58784.0,0.000902]
[1724087485649,2.35200595,58785.0,58784.0,0.000902]
[1724087486049,2.34263391,58785.0,58784.0,0.000902]
[1724087486254,2.35200842,58785.0,58784.0,0.000902]
[1724087486659,2.60262792,58785.0,58784.0,0.0007549]
[1724087486873,2.61662792,58785.0,58784.0,0.0007549]
[1724087487220,2.58862792,58785.0,58784.0,0.0007549]
[1724087487368,2.60262792,58785.0,58784.0,0.0007549]
[1724087487571,2.61662792,58785.0,58784.0,0.0007549]
[1724087487750,2.38000848,58785.0,58784.0,0.0007549]
[1724087488826,2.29800848,58785.0,58784.0,0.0007549]
[1724087489023,2.29400848,58785.0,58784.0,0.0007549]
[1724087489320,2.12665971,58785.0,58784.0,0.0007549]
[1724087489544,2.11728514,58785.0,58784.0,0.0007549]
[1724087489743,2.12665969,58785.0,58784.0,0.0007549]
[1724087490852,2.12625038,58785.0,58784.0,0.0007549]
[1724087491058,2.15713073,58785.0,58784.0,0.0007549]
[1724087491673,2.39364709,58785.0,58784.0,0.0007549]
[1724087492966,1.19592,58778.0,58777.0,0.009031]
[1724087493181,1.97209705,58778.0,58777.0,0.009031]
[1724087493387,3.11710882,58778.0,58777.0,0.009031]
[1724087493594,3.3677136,58778.0,58777.0,0.009031]
[1724087494211,3.3817136,58778.0,58777.0,0.009031]
[1724087494422,3.3957136,58778.0,58777.0,0.009031]
[1724087494628,3.14510882,58778.0,58777.0,0.009031]
[1724087495484,3.0753803,58778.0,58777.0,0.009031]
[1724087495692,2.72451917,58778.0,58777.0,0.009031]
[1724087495889,2.38425617,58778.0,58777.0,0.152131]
[1724087496326,0.79414713,58778.0,58777.0,0.152131]
[1724087496551,0.55800061,58778.0,58777.0,0.152131]
[1724087496771,0.55800061,58778.0,58777.0,0.17129003]
[1724087496772,0.54777455,58778.0,58777.0,0.17129003]
[1724087497201,0.54777455,58778.0,58777.0,1.02196203]
[1724087497403,0.51977455,58778.0,58777.0,1.02196203]
[1724087497809,0.52477455,58778.0,58777.0,1.02196203]
[1724087498017,0.52477455,58778.0,58777.0,0.68169303]
[1724087498222,0.577252,58778.0,58777.0,0.68169303]
[1724087498625,0.585252,58778.0,58777.0,0.68169303]
[1724087498825,0.53677455,58778.0,58777.0,0.68169303]
[1724087499046,0.52377455,58778.0,58777.0,0.68169303]
[1724087499451,0.52377455,58778.0,58777.0,1.02196203]
[1724087499654,0.5144,58778.0,58777.0,1.02196203]
[1724087499864,0.52377284,58778.0,58777.0,1.02196203]
[1724087500599,0.51977284,58778.0,58777.0,1.02196203]
[1724087504469,0.68990376,58778.0,58777.0,0.17129003]
[1724087504663,1.03016676,58778.0,58777.0,0.17129003]
[1724087504871,1.03016676,58778.0,58777.0,0.152131]
[1724087505021,1.03016676,58778.0,58777.0,0.1701393]
[1724087505231,1.16823142,58778.0,58777.0,0.1701393]
[1724087506367,1.37042976,58778.0,58777.0,0.1701393]
[1724087506561,1.89226636,58778.0,58777.0,0.152131]
[1724087506764,1.88204153,58778.0,58777.0,0.152131]
[1724087506967,1.88404153,58778.0,58777.0,0.152131]
[1724087507172,2.12445255,58778.0,58777.0,0.152131]
[1724087507341,2.12245255,58778.0,58777.0,0.152131]
[1724087507772,2.12445255,58778.0,58777.0,0.152131]
[1724087507943,2.12245355,58778.0,58777.0,0.152131]
[1724087508329,2.12645355,58778.0,58777.0,0.152131]
[1724087508929,2.12945355,58778.0,58777.0,0.152131]
[1724087509193,1.95810478,58778.0,58777.0,0.152131]
[1724087511370,2.00889728,58778.0,58777.0,0.152131]
[1724087511552,2.00895543,58778.0,58777.0,0.152131]
[1724087511983,1.99958167,58778.0,58777.0,0.152131]
[1724087512168,2.00895543,58778.0,58777.0,0.152131]
[1724087512361,1.95810478,58778.0,58777.0,0.152131]
[1724087512566,2.03443641,58778.0,58777.0,0.152131]
[1724087513413,2.17337751,58778.0,58777.0,0.152131]
[1724087514197,2.29598152,58778.0,58777.0,0.152131]
[1724087515040,2.29698152,58778.0,58777.0,0.152131]
[1724087515228,2.29698152,58778.0,58777.0,0.069431]
[1724087515483,2.16985489,58778.0,58777.0,0.009031]
[1724087515900,2.17177317,58778.0,58777.0,0.009031]
[1724087516332,2.17177304,58778.0,58777.0,0.009031]
[1724087516543,2.16877304,58778.0,58777.0,0.009031]
[1724087516761,2.66783317,58778.0,58777.0,0.009031]
[1724087517018,2.66983317,58778.0,58777.0,0.009031]
[1724087517444,2.8418277,58778.0,58777.0,0.009031]
[1724087517641,2.42297166,58778.0,58777.0,0.009031]
[1724087517840,2.83367872,58778.0,58777.0,0.009031]
[1724087518014,2.83967872,58778.0,58777.0,0.009031]
[1724087518215,2.91897872,58778.0,58777.0,0.009031]
[1724087518479,2.92797872,58778.0,58777.0,0.009031]
[1724087518681,2.94697872,58778.0,58777.0,0.009031]
[1724087518884,2.85467872,58778.0,58777.0,0.009031]
[1724087519300,2.85667872,58778.0,58777.0,0.009031]
[1724087519517,2.85467872,58778.0,58777.0,0.009031]
[1724087519745,2.70807471,58778.0,58777.0,0.009031]
[1724087519953,2.53593747,58778.0,58777.0,0.009031]
[1724087520129,2.52993747,58778.0,58777.0,0.009031]
[1724087520338,2.19967447,58778.0,58777.0,0.009031]
[1724087520529,2.19667512,58778.0,58777.0,0.009031]
[1724087520737,2.36802389,58778.0,58777.0,0.009031]
[1724087520935,2.37502389,58778.0,58777.0,0.009031]
[1724087521177,2.36102389,58778.0,58777.0,0.009031]
[1724087521381,2.37102389,58778.0,58777.0,0.009031]
[1724087521577,2.21067512,58778.0,58777.0,0.070131]
[1724087523458,2.20130084,58778.0,58777.0,0.070131]
[1724087523660,2.21167508,58778.0,58777.0,0.070131]
[1724087523872,2.38502385,58778.0,58777.0,0.070131]
[1724087524093,2.38502386,58778.0,58777.0,0.070131]
[1724087524844,2.38502386,58778.0,58777.0,0.009031]
[1724087524845,2.8994241,58778.0,58777.0,0.009031]
[1724087525053,2.8994241,58778.0,58775.0,0.009031]
[1724087525054,1.195959,58776.0,58775.0,0.009031]
[1724087525253,2.55798809,58776.0,58775.0,0.009031]
[1724087526709,2.56795851,58776.0,58775.0,0.009031]
[1724087526925,2.58195851,58776.0,58775.0,0.009031]
[1724087527598,2.59595851,58776.0,58775.0,0.009031]
[1724087527808,2.76390728,58776.0,58775.0,0.009031]
[1724087528499,2.74990728,58776.0,58775.0,0.009031]
[1724087528930,2.73590728,58776.0,58775.0,0.009031]
[1724087529132,2.74990728,58776.0,58775.0,0.009031]
[1724087529545,2.73590728,58776.0,58775.0,0.009031]
[1724087529752,2.74990728,58776.0,58775.0,0.009031]
[1724087530439,2.76390728,58776.0,58775.0,0.009031]
[1724087531896,2.84500728,58776.0,58775.0,0.009031]
[1724087532144,2.83649973,58776.0,58775.0,0.009031]
[1724087532422,2.83651021,58776.0,58775.0,0.009031]
[1724087533144,2.75541021,58776.0,58775.0,0.009031]
[1724087535028,2.75541021,58776.0,58775.0,0.0077501]
[1724087535754,2.75543215,58776.0,58775.0,0.0077501]
[1724087535995,2.57349102,58776.0,58775.0,0.0077501]
[1724087536352,2.74946173,58776.0,58775.0,0.0077501]
[1724087536586,2.34341992,58776.0,58775.0,0.0077501]
[1724087536840,2.72554785,58776.0,58775.0,0.0077501]
[1724087537041,2.7275475,58776.0,58775.0,0.0077501]
[1724087537257,2.89889627,58776.0,58775.0,0.0077501]
[1724087537505,2.89152072,58776.0,58775.0,0.0077501]
[1724087537723,2.90089628,58776.0,58775.0,0.0077501]
[1724087538828,2.92389628,58776.0,58775.0,0.0077501]
[1724087539464,2.91889628,58776.0,58775.0,0.0077501]
[1724087539682,2.91989628,58776.0,58775.0,0.0077501]
[1724087540553,2.74792721,58776.0,58775.0,0.0077501]
[1724087540764,2.55257844,58776.0,58775.0,0.1466501]
[1724087540973,2.55357844,58776.0,58775.0,0.1466501]
[1724087541183,2.55642645,58776.0,58775.0,0.1466501]
[1724087541438,2.55742645,58776.0,58775.0,0.1466501]
[1724087541681,2.58822592,58776.0,58775.0,0.1466501]
[1724087541865,2.60922556,58776.0,58775.0,0.0688501]
[1724087542302,2.61122556,58776.0,58775.0,0.0688501]
[1724087542541,2.60922556,58776.0,58775.0,0.0688501]
[1724087543414,2.58522556,58776.0,58775.0,0.0688501]
[1724087543628,2.58522556,58776.0,58775.0,0.1506501]
[1724087543629,2.09144734,58776.0,58775.0,0.1506501]
[1724087543847,2.24597198,58776.0,58775.0,0.1506501]
[1724087544057,2.23785123,58776.0,58775.0,0.1506501]
[1724087544262,2.23985123,58776.0,58775.0,0.1506501]
[1724087544477,2.23685123,58776.0,58775.0,0.1506501]
[1724087546236,2.23767323,58776.0,58775.0,0.1506501]
[1724087546487,2.23767308,58776.0,58775.0,0.1506501]
[1724087547636,1.71924259,58776.0,58775.0,0.1506501]
[1724087547847,0.86734582,58776.0,58775.0,0.1506501]
[1724087548064,1.20761982,58776.0,58775.0,0.1506501]
[1724087548299,1.33503555,58776.0,58775.0,0.1506501]
[1724087548530,0.54859705,58776.0,58775.0,0.1506501]
[1724087548769,0.96028459,58776.0,58775.0,0.1506501]
[1724087549007,0.9041965,58776.0,58775.0,0.16872414]
[1724087549492,0.97328104,58776.0,58775.0,0.16872414]
[1724087549724,0.72469359,58776.0,58775.0,0.33886414]
[1724087549978,0.72469359,58776.0,58775.0,0.67914414]
[1724087549979,0.62405525,58776.0,58775.0,0.67914414]
[1724087550227,0.61005525,58776.0,58775.0,0.33886414]
[1724087550488,0.60728051,58776.0,58775.0,0.33886414]
[1724087550723,0.62828051,58776.0,58775.0,0.33886414]
[1724087550930,0.5946819,58776.0,58775.0,0.33886414]
[1724087551172,0.60728031,58776.0,58775.0,0.33886414]
[1724087551560,0.60828031,58776.0,58775.0,0.67914414]
[1724087551756,0.61028031,58776.0,58775.0,0.67914414]
[1724087552397,0.52359515,58776.0,58775.0,0.67914414]
[1724087552607,0.57457269,58776.0,58775.0,0.67914414]
[1724087553055,0.52359515,58776.0,58775.0,0.67914414]
[1724087554733,0.52359515,58776.0,58775.0,1.01942414]
[1724087554942,0.52359515,58776.0,58775.0,0.67914414]
[1724087555172,0.52359515,58776.0,58775.0,0.16872414]
[1724087555366,0.514222,58776.0,58775.0,0.16872414]
[1724087555578,0.52359447,58776.0,58775.0,1.01942414]
[1724087555992,0.52359447,58776.0,58775.0,0.33886414]
[1724087556204,0.52359447,58776.0,58775.0,0.67914414]
[1724087559986,0.52359444,58776.0,58775.0,0.67914414]
[1724087561084,0.52359444,58776.0,58775.0,1.01942414]
[1724087561957,0.52359444,58776.0,58775.0,0.67914414]
[1724087562177,0.52359444,58776.0,58775.0,1.01942414]
[1724087564112,0.52359444,58776.0,58775.0,1.35970414]
[1724087565090,0.52159377,58776.0,58775.0,1.35970414]
[1724087565352,0.52259377,58776.0,58775.0,1.35970414]
[1724087565595,0.52159377,58776.0,58775.0,1.35970414]
[1724087566080,0.52259377,58776.0,58775.0,2.85970414]
[1724087566504,0.52159377,58776.0,58775.0,2.85970414]
[1724087566927,0.52259377,58776.0,58775.0,2.85970414]
[1724087568939,0.52259376,58776.0,58775.0,2.85970414]
[1724087569164,0.52259376,58776.0,58775.0,1.97133291]
[1724087569443,0.002822,58776.0,58775.0,2.26133291]
[1724087569687,0.000822,58784.0,58783.0,0.991385]
[1724087569921,0.000822,58784.0,58783.0,1.50296777]
[1724087570144,0.000822,58784.0,58783.0,1.62092208]
[1724087570623,0.000822,58784.0,58783.0,1.96115608]
[1724087571340,0.001822,58784.0,58783.0,1.96115608]
[1724087572196,0.001822,58784.0,58783.0,1.62092208]
[1724087572847,0.001822,58784.0,58783.0,1.62592208]
[1724087573060,0.001822,58784.0,58783.0,1.63627237]
[1724087573301,0.001822,58784.0,58783.0,3.13627237]
[1724087588059,0.001822,58784.0,58783.0,1.63627237]
[1724087588940,0.001822,58784.0,58783.0,1.11433931]
[1724087589814,0.01119246,58784.0,58783.0,0.02295431]
[1724087590027,0.01119246,58784.0,58783.0,0.19307131]
[1724087590235,0.01119246,58784.0,58783.0,0.005]
[1724087590443,0.01119246,58784.0,58783.0,0.02285677]
[1724087590655,0.01119246,58784.0,58782.0,0.170118]
[1724087590866,0.001822,58784.0,58783.0,0.01785677]
[1724087591077,0.18130715,58784.0,58783.0,0.01985677]
[1724087591288,0.18130715,58784.0,58783.0,0.02185677]
[1724087591714,0.01119315,58784.0,58783.0,0.02185677]
[1724087591927,0.18130715,58784.0,58783.0,0.02185677]
[1724087592142,0.01019315,58784.0,58783.0,0.01985677]
[1724087592571,0.52053515,58784.0,58783.0,0.02185677]
[1724087592997,0.18030718,58784.0,58783.0,0.01985677]
[1724087593212,0.01019318,58784.0,58783.0,0.01785677]
[1724087593447,0.01019318,58784.0,58783.0,0.26457377]
[1724087593666,0.01019318,58784.0,58783.0,0.586951]
[1724087593922,0.01019318,58784.0,58783.0,0.60480777]
[1724087594153,0.01019318,58784.0,58783.0,0.26457377]
[1724087594154,0.01119318,58784.0,58783.0,0.26457377]
[1724087594391,0.18130718,58784.0,58783.0,0.01785677]
[1724087594857,0.01119318,58784.0,58783.0,0.18797377]
[1724087595068,0.01119318,58784.0,58783.0,0.01785677]
[1724087595930,0.18130718,58784.0,58783.0,0.01785677]
[1724087596136,0.52153518,58784.0,58783.0,0.01785677]
[1724087596364,1.52746306,58784.0,58783.0,0.01785677]
[1724087596606,1.51823995,58784.0,58783.0,0.01785677]
[1724087596830,1.51823995,58784.0,58776.0,0.0009031]
[1724087596831,0.994572,58777.0,58776.0,0.0009031]
[1724087597072,1.334841,58777.0,58776.0,0.0009031]
[1724087597287,1.50618977,58777.0,58776.0,0.0009031]
[1724087597546,1.58699438,58777.0,58776.0,0.0009031]
[1724087597765,1.65603024,58777.0,58776.0,0.0009031]
[1724087598200,1.65903024,58777.0,58776.0,0.0029031]
[1724087598422,2.17064801,58777.0,58776.0,0.0029031]
[1724087599065,2.17164801,58777.0,58776.0,0.0029031]
[1724087599281,2.17264801,58777.0,58776.0,0.0029031]
[1724087599495,2.17964801,58777.0,58776.0,0.0009031]
[1724087599928,2.16864801,58777.0,58776.0,0.0009031]
[1724087600380,2.19064801,58777.0,58776.0,0.0009031]
[1724087600591,2.17964801,58777.0,58776.0,0.0009031]
[1724087601022,2.19764801,58777.0,58776.0,0.0009031]
[1724087601237,2.22064801,58777.0,58776.0,0.0009031]
[1724087601471,2.20964801,58777.0,58776.0,0.0009031]
[1724087601689,2.36242891,58777.0,58776.0,0.0008128]
[1724087601909,2.37642891,58777.0,58776.0,0.0008128]
[1724087602373,2.37642891,58777.0,58765.0,1.5]
[1724087602374,1.969794,58766.0,58765.0,1.5]
[1724087602594,2.34907816,58766.0,58765.0,1.5]
[1724087602845,2.29102096,58766.0,58765.0,1.51797332]
[1724087603086,2.29102096,58766.0,58765.0,1.5]
[1724087603087,2.75435296,58766.0,58765.0,1.5]
[1724087603343,3.23554589,58766.0,58765.0,1.51797332]
[1724087603576,3.08122943,58766.0,58765.0,1.51797332]
[1724087603808,3.09522943,58766.0,58765.0,1.51897332]
[1724087604033,3.08122943,58766.0,58765.0,1.51797332]
[1724087604260,2.75940285,58766.0,58765.0,1.51897332]
[1724087604513,2.56713097,58766.0,58765.0,1.51797332]
[1724087604726,2.41866827,58766.0,58765.0,1.51797332]
[1724087604943,2.59001704,58766.0,58765.0,1.51797332]
[1724087605623,2.00526269,58766.0,58765.0,1.51797332]
[1724087605835,1.83281077,58766.0,58765.0,1.51797332]
[1724087606055,1.87416053,58766.0,58765.0,1.51797332]
[1724087606297,1.19306921,58766.0,58765.0,1.51797332]
[1724087606528,1.19306921,58766.0,58765.0,1.51887642]
[1724087606747,1.16506921,58766.0,58765.0,1.51887642]
[1724087606972,1.53340121,58766.0,58765.0,1.51887642]
[1724087607647,1.45170121,58766.0,58765.0,1.51887642]
[1724087608287,0.53808844,58766.0,58765.0,1.51887642]
[1724087608708,0.53808844,58766.0,58765.0,1.59887642]
[1724087608918,0.87842044,58766.0,58765.0,1.59887642]
[1724087609154,0.53808844,58766.0,58765.0,1.59887642]
[1724087609362,0.18375644,58766.0,58765.0,1.59887642]
[1724087609815,0.18375644,58766.0,58765.0,1.76904542]
[1724087609816,0.014,58766.0,58765.0,1.76904542]
[1724087610019,0.184166,58766.0,58765.0,1.59887642]
[1724087610241,0.198166,58766.0,58765.0,1.59887642]
[1724087610497,0.184166,58766.0,58765.0,1.59887642]
[1724087610682,0.188166,58766.0,58765.0,1.59887642]
[1724087610928,0.184166,58766.0,58765.0,1.59887642]
[1724087611590,0.170166,58766.0,58765.0,1.59887642]
[1724087611819,0.170166,58766.0,58765.0,1.59987642]
[1724087612261,0.2552465,58766.0,58765.0,1.59987642]
[1724087612679,0.340318,58769.0,58765.0,1.59987642]
[1724087612898,0.340322,58768.0,58765.0,1.59987642]
[1724087613105,0.170166,58766.0,58765.0,1.59987642]
[1724087615207,0.170164,58767.0,58765.0,1.59887642]
[1724087615425,0.006,58769.0,58765.0,1.59887642]
[1724087615640,0.176159,58769.0,58765.0,1.76904442]
[1724087615869,0.176159,58769.0,58765.0,1.59887642]
[1724087615870,0.170166,58766.0,58765.0,1.59887642]
[1724087616084,0.170162,58768.0,58765.0,1.59887642]
[1724087616301,0.170162,58768.0,58765.0,1.59987642]
[1724087616525,0.340315,58770.0,58765.0,1.77004442]
[1724087616766,0.17016,58769.0,58766.0,0.170164]
[1724087617242,0.170161,58768.0,58767.0,0.01804476]
[1724087617496,0.340288,58774.0,58768.0,0.1418]
[1724087617710,0.05067693,58780.0,58768.0,0.1418]
[1724087617711,0.340292,58773.0,58768.0,0.1418]
[1724087617933,0.170153,58771.0,58768.0,0.1418]
[1724087618148,0.170153,58771.0,58769.0,1.51804476]
[1724087618406,0.170153,58771.0,58769.0,0.01804476]
[1724087618845,0.170154,58770.0,58769.0,0.01804476]
[1724087619067,0.850772,58770.0,58769.0,0.01804476]
[1724087619310,0.510463,58770.0,58769.0,0.01804476]
[1724087619523,0.510463,58770.0,58766.0,1.5]
[1724087619524,0.170164,58767.0,58766.0,1.5]
[1724087620139,0.170164,58767.0,58765.0,1.5009031]
[1724087620605,0.170164,58767.0,58765.0,3.0009031]
[1724087620815,0.170161,58768.0,58765.0,3.0009031]
[1724087621027,0.170161,58768.0,58765.0,1.5009031]
[1724087622108,0.170161,58768.0,58765.0,1.5019031]
[1724087622565,0.170161,58768.0,58765.0,1.6710711]
[1724087623015,0.170161,58768.0,58765.0,1.5009031]
[1724087623016,0.170164,58767.0,58765.0,1.5009031]
[1724087623231,0.340321,58768.0,58765.0,1.5009031]
[1724087623447,0.170164,58767.0,58765.0,1.5009031]
[1724087624330,0.340311,58770.0,58765.0,1.5019031]
[1724087624545,0.170161,58768.0,58765.0,1.6720711]
[1724087624988,0.170164,58767.0,58765.0,3.0019031]
[1724087625209,0.170164,58767.0,58765.0,1.5009031]
[1724087626171,0.23694877,58776.0,58767.0,0.170162]
[1724087626384,0.170159,58769.0,58766.0,0.251965]
[1724087626599,0.001,58768.0,58766.0,0.251965]
[1724087626820,0.171161,58768.0,58766.0,0.0818]
[1724087627053,0.170161,58768.0,58766.0,0.0818]
[1724087627277,0.001,58781.0,58766.0,0.0818]
[1724087627278,0.170152,58771.0,58768.0,0.17016]
[1724087627491,0.170152,58771.0,58769.0,0.0817]
[1724087627709,0.340299,58772.0,58769.0,0.251856]
[1724087627710,0.17015,58772.0,58769.0,0.251856]
[1724087628142,0.170154,58770.0,58769.0,0.0817]
[1724087628575,0.5955377,58770.0,58769.0,0.0817]
[1724087629008,0.510463,58770.0,58769.0,0.0817]
[1724087630345,0.511284,58770.0,58769.0,0.0817]
[1724087630569,0.511284,58770.0,58769.0,0.09973632]
[1724087630992,0.514284,58770.0,58769.0,0.09973632]
[1724087631202,0.517284,58770.0,58769.0,0.09973632]
[1724087632526,0.59166224,58770.0,58769.0,0.09973632]
[1724087633162,0.59166224,58770.0,58769.0,0.01803632]
[1724087633418,0.93197124,58770.0,58769.0,0.01803632]
[1724087633630,0.17016,58768.0,58767.0,0.0608]
[1724087634704,0.26843081,58768.0,58766.0,0.0781]
[1724087635146,0.001,58768.0,58765.0,1.5009031]
[1724087635350,0.171161,58768.0,58765.0,1.6710711]
[1724087636599,0.170161,58768.0,58765.0,1.6710711]
[1724087636810,0.171161,58768.0,58765.0,1.6710711]
[1724087637019,0.170161,58768.0,58765.0,1.6710711]
[1724087637481,0.171161,58768.0,58765.0,1.6710711]
[1724087638335,0.171161,58768.0,58766.0,0.0819]
[1724087639006,0.170163,58767.0,58765.0,1.5009031]
[1724087640473,0.170166,58766.0,58765.0,1.5009031]
[1724087640681,0.170164,58767.0,58765.0,1.5009031]
[1724087640900,0.09350745,58767.0,58765.0,1.6710711]
[1724087641160,0.05089393,58768.0,58766.0,0.249866]
[1724087641349,0.4174739,58770.0,58768.0,0.065]
[1724087641350,0.22186993,58770.0,58768.0,0.065]
[1724087642004,0.000821,58770.0,58769.0,0.998487]
[1724087643116,0.000821,58770.0,58769.0,0.658172]
[1724087644385,0.000821,58770.0,58769.0,2.158172]
[1724087644806,0.000821,58770.0,58769.0,2.498487]
[1724087645485,0.000821,58770.0,58769.0,2.501487]
[1724087645697,0.000821,58770.0,58769.0,2.51952384]
[1724087647220,0.000821,58770.0,58769.0,1.01952384]
[1724087647953,0.000821,58770.0,58769.0,2.85983884]
[1724087648425,0.000821,58770.0,58769.0,1.35983884]
[1724087648876,0.000821,58770.0,58769.0,2.85983884]
[1724087649767,0.000821,58770.0,58769.0,2.51952384]
[1724087650665,0.01019426,58770.0,58769.0,2.51952384]
[1724087651114,0.01019426,58770.0,58769.0,0.02103684]
[1724087651115,0.32058287,58770.0,58769.0,0.02103684]
[1724087651339,0.75312858,58770.0,58769.0,0.02103684]
[1724087651582,1.09343758,58770.0,58769.0,0.02103684]
[1724087651795,1.16066432,58770.0,58769.0,0.02103684]
[1724087652009,1.32604677,58770.0,58769.0,0.01803684]
[1724087652429,1.32604677,58770.0,58769.0,0.01903684]
[1724087652650,1.33542141,58770.0,58769.0,0.001]
[1724087652911,1.50677018,58770.0,58769.0,0.01902027]
[1724087653118,1.50677017,58770.0,58769.0,0.01902027]
[1724087653567,1.85207917,58770.0,58769.0,0.01902027]
[1724087653790,2.03984248,58770.0,58769.0,0.01802027]
[1724087654057,2.37915148,58770.0,58769.0,0.01373486]
[1724087654280,2.21376903,58770.0,58769.0,0.01780536]
[1724087654517,1.330062,58766.0,58765.0,1.5009031]
[1724087654738,1.84122003,58766.0,58765.0,1.5009031]
[1724087654953,2.0175688,58766.0,58765.0,1.5009031]
[1724087655169,2.3809008,58766.0,58765.0,1.5009031]
[1724087655637,2.36652617,58766.0,58765.0,1.5009031]
[1724087656288,2.36652617,58766.0,58765.0,1.5008031]
[1724087657189,2.37652617,58766.0,58765.0,1.5008031]
[1724087657408,2.37552617,58766.0,58765.0,1.5008031]
[1724087657620,2.39028379,58766.0,58765.0,1.5008031]
[1724087657862,2.38128379,58766.0,58765.0,1.5008031]
[1724087658143,2.37297409,58766.0,58765.0,1.5008031]
[1724087658367,2.40097409,58766.0,58765.0,1.5008031]
[1724087658600,2.20086691,58766.0,58765.0,1.5008031]
[1724087658828,1.83253491,58766.0,58765.0,1.5008031]
[1724087659042,1.84653491,58766.0,58765.0,1.5008031]
[1724087659903,1.44420291,58766.0,58765.0,1.5008031]
[1724087660115,1.19838163,58766.0,58765.0,1.5008031]
[1724087660327,0.68670086,58766.0,58765.0,1.5008031]
[1724087660758,1.02703286,58766.0,58765.0,1.5008031]
[1724087660975,1.16835423,58766.0,58765.0,1.5008031]
[1724087661201,1.14497838,58766.0,58765.0,1.5008031]
[1724087661411,1.15435423,58766.0,58765.0,1.5008031]
[1724087661648,1.16835423,58766.0,58765.0,1.51865437]
[1724087661863,1.09550939,58766.0,58765.0,1.51865437]
[1724087662292,1.10950939,58766.0,58765.0,1.51865437]
[1724087662506,1.11487815,58766.0,58765.0,1.51865437]
[1724087662927,1.62655892,58766.0,58765.0,1.51865437]
[1724087664032,1.6163309,58766.0,58765.0,1.51865437]
[1724087664273,1.61633071,58766.0,58765.0,1.51865437]
[1724087664526,1.61621535,58766.0,58765.0,1.51865437]
[1724087667116,0.9866579,58766.0,58765.0,1.51865437]
[1724087667745,0.9874789,58766.0,58765.0,1.51865437]
[1724087668621,0.6471469,58766.0,58765.0,1.51865437]
[1724087668834,0.65737433,58766.0,58765.0,1.58265437]
[1724087669044,0.74905091,58766.0,58765.0,1.65835437]
[1724087669436,0.99770633,58766.0,58765.0,1.51865437]
[1724087669851,1.13916895,58766.0,58765.0,1.51865437]
[1724087670061,1.14939182,58766.0,58765.0,1.51865437]
[1724087670287,1.09740988,58766.0,58765.0,1.51865437]
[1724087670723,1.60909065,58766.0,58765.0,1.51865437]
[1724087670943,1.99890621,58766.0,58765.0,1.51865437]
[1724087671363,2.00828204,58766.0,58765.0,1.51865437]
[1724087671780,2.32086233,58766.0,58765.0,1.51865437]
[1724087671986,2.16798954,58766.0,58765.0,1.51865437]
[1724087672239,2.1665266,58766.0,58765.0,1.51865437]
[1724087672459,2.1525266,58766.0,58765.0,1.51865437]
[1724087672679,2.32038099,58766.0,58765.0,1.51865437]
[1724087672893,2.14713643,58766.0,58765.0,1.51865437]
[1724087673106,2.16630363,58766.0,58765.0,1.51865437]
[1724087673357,2.18430363,58766.0,58765.0,1.51865437]
[1724087673609,2.27380363,58766.0,58765.0,1.51865437]
[1724087674849,2.25980363,58766.0,58765.0,1.51865437]
[1724087675927,2.24380363,58766.0,58765.0,1.51865437]
[1724087676136,2.44502715,58766.0,58765.0,1.09320415]
[1724087676351,2.44502715,58766.0,58765.0,1.05516025]
[1724087676352,2.54214397,58766.0,58765.0,1.05516025]
[1724087676571,1.536548,58764.0,58763.0,0.000902]
[1724087676788,2.42606884,58764.0,58763.0,0.000902]
[1724087676973,2.55340794,58764.0,58763.0,0.000902]
[1724087677474,2.42606884,58764.0,58763.0,0.000902]
[1724087677680,2.55338588,58764.0,58763.0,0.000902]
[1724087677887,2.71535882,58764.0,58763.0,0.000902]
[1724087678097,2.7247367,58764.0,58763.0,0.000902]
[1724087678992,3.2352567,58764.0,58763.0,0.000902]
[1724087679418,3.2492567,58764.0,58763.0,0.000902]
[1724087679622,3.12193966,58764.0,58763.0,0.000902]
[1724087680053,3.08176462,58764.0,58763.0,0.000902]
[1724087680271,3.06776462,58764.0,58763.0,0.000902]
[1724087680682,3.08176462,58764.0,58763.0,0.000902]
[1724087681338,3.09199503,58764.0,58763.0,0.000902]
[1724087681763,3.08176462,58764.0,58763.0,0.000902]
[1724087681974,3.08176463,58764.0,58763.0,0.000902]
[1724087682175,3.09199506,58764.0,58763.0,0.000902]
[1724087684788,3.09099506,58764.0,58763.0,0.000902]
[1724087685002,2.74965106,58764.0,58763.0,0.000902]
[1724087685203,2.69214343,58764.0,58763.0,0.000902]
[1724087685816,2.68276554,58764.0,58763.0,0.000902]
[1724087686016,2.74430238,58764.0,58763.0,0.000902]
[1724087686447,2.81342678,58764.0,58763.0,0.000902]
[1724087688027,2.74472678,58764.0,58763.0,0.000902]
[1724087688229,2.87393697,58764.0,58763.0,0.000902]
[1724087688439,2.13349558,58764.0,58763.0,0.000902]
[1724087688846,2.03173401,58764.0,58763.0,0.000902]
[1724087689054,2.0345513,58764.0,58763.0,0.000902]
[1724087689256,2.0205513,58764.0,58763.0,0.000902]
[1724087689682,2.29368603,58764.0,58763.0,0.000902]
[1724087689890,2.20590007,58764.0,58763.0,0.000902]
[1724087690042,2.20689915,58764.0,58763.0,0.000902]
[1724087690238,2.27249915,58764.0,58763.0,0.000902]
[1724087690416,2.63984315,58764.0,58763.0,0.000902]
[1724087691863,2.72304315,58764.0,58763.0,0.000902]
[1724087692059,2.73381552,58764.0,58763.0,0.000902]
[1724087693106,3.12381552,58764.0,58763.0,0.000902]
[1724087693309,3.27649269,58764.0,58763.0,0.000902]
[1724087693516,3.39210748,58764.0,58763.0,0.000902]
[1724087694066,3.3881089,58764.0,58763.0,0.000902]
[1724087694307,3.3921089,58764.0,58763.0,0.000902]
[1724087694509,3.23927384,58764.0,58763.0,0.000902]
[1724087695138,3.57961784,58764.0,58763.0,0.000902]
[1724087695671,3.23927384,58764.0,58763.0,0.000902]
[1724087696079,3.23527384,58764.0,58763.0,0.000902]
[1724087696303,2.86972247,58764.0,58763.0,0.000902]
[1724087696718,2.13142675,58764.0,58763.0,0.000902]
[1724087696925,2.47477075,58764.0,58763.0,0.000902]
[1724087697943,2.15683983,58764.0,58763.0,0.000902]
[1724087698371,2.1568395,58764.0,58763.0,0.000902]
[1724087699463,2.31080098,58764.0,58763.0,0.000902]
[1724087699689,2.48214975,58764.0,58763.0,0.000902]
[1724087699844,2.48215003,58764.0,58763.0,0.000902]
[1724087700057,2.48859071,58764.0,58763.0,0.000902]
[1724087700464,2.48559071,58764.0,58763.0,0.000902]
[1724087700866,2.95675765,58764.0,58763.0,0.000902]
[1724087701099,2.96804617,58764.0,58763.0,0.000902]